Cogmind - Beta 13 @@@ ROGUE MODE // 2024.05.01 @ 02:25:46 Player: puppuppit Result: Destroyed by C-35 Carver with Carbide Saw Performance ------------- Evolutions (7) 3500 Regions Visited (12) 2400 Robots Destroyed (381) 1905 Value Destroyed (10883) 10883 Prototype IDs (46) 920 Alien Tech Used (0) 0 Bonus (6532) 6532 TOTAL SCORE: 26140 Bonus ------- Triggered High Security 500 High Alert Combat Kills 5339 Follower Combat Kills 290 Entered Garrisons 200 Aligned with FarCom 300 Friendly Fire -97 Cogmind --------- Core Integrity 0/1300 Matter 218/300 Energy 99/100 System Corruption 0% Temperature Cool (0) Movement Core (50) Location -3/Research Parts ------- > --- POWER (2) -------- (None) > --- PROPULSION (8) --- (None) > --- UTILITY (8) ------ (None) > --- WEAPON (3) ------- (None) > --- INVENTORY (5) ---- Light Angular Momentum Engine Peak State ------------ > --- POWER ------------ Micro Nuclear Core > --- PROPULSION ------- Cooled Airjet Cooled Airjet Cooled Airjet Cooled Airjet Cooled Airjet > --- UTILITY ---------- Medium Storage Unit Active Cooling Armor > --- WEAPON ----------- Neutron Cannon > --- INVENTORY -------- Cooled Airjet Advanced Energy Well Experimental Sensor Array Layered Light Armor Plating Improved Focal Shield Authchip [R/NC] Compact Ion Cannon YOLO Cannon Scatter Rocket Array [Rating: 70] Favorites ----------- Power Light Nuclear Core Engine Light Ion Engine Power Core Light Nuclear Core Propulsion Flight Unit Leg Carbon-fiber Leg Wheel Wheel Hover Unit Aerolev Unit Flight Unit Flight Unit Utility Small Storage Unit Device Improved Heat Sink Storage Small Storage Unit Processor Advanced Targeting Computer Hackware System Shield Protection Hardened Light Armor Plating Weapon Light Assault Rifle Energy Gun Precision Beam Rifle Energy Cannon Compact Ion Cannon Ballistic Gun Light Assault Rifle Ballistic Cannon Assault Cannon Launcher Scatter Rocket Array Special Weapon Improved Plasma Cutter Slashing Weapon Makeshift Sword Build | -11 -10 -10 -10 -9 -8 -8 -8 -7 -6 -5 -4 -3 ------- Run | Yrd Mat Min Exi Min Mat Gar Mat Fac Fac Fac Fac Res Slots Evolved 14 | . . . . . 4 . . 2 2 2 2 2 Power 1 | . . . . . 1 . . . . . . . Propulsion 6 | . . . . . 3 . . . 1 2 . . Utility 6 | . . . . . . . . 2 . . 2 2 Weapon 1 | . . . . . . . . . 1 . . . Parts Attached 342 | 8 15 12 2 9 60 56 23 95 25 11 9 17 Power 53 | 2 . . . . 15 15 2 8 4 2 1 4 Engine 20 | 2 . . . . 8 3 1 2 2 . . 2 Core 33 | . . . . . 7 12 1 6 2 2 1 2 Reactor . | . . . . . . . . . . . . . Propulsion 102 | 2 7 5 . 2 26 16 8 17 8 2 5 4 Treads . | . . . . . . . . . . . . . Leg 6 | . . . . . . . . . 6 . . . Wheel 3 | 2 1 . . . . . . . . . . . Hover 25 | . . . . . . . 6 16 . . 3 . Flight 68 | . 6 5 . 2 26 16 2 1 2 2 2 4 Utility 70 | 2 5 . 2 3 10 5 3 26 5 3 3 3 Device 32 | 1 3 . 2 . 3 4 2 12 1 1 2 1 Storage 7 | 1 . . . . 1 1 1 3 . . . . Processor 12 | . 2 . . 3 3 . . . . 2 . 2 Hackware 8 | . . . . . 1 . . 3 3 . 1 . Protection 11 | . . . . . 2 . . 8 1 . . . Artifact . | . . . . . . . . . . . . . Weapon 117 | 2 3 7 . 4 9 20 10 44 8 4 . 6 Energy Gun 13 | 1 1 . . . 4 6 . . . 1 . . Energy Cannon 25 | . . . . . . 5 1 12 6 . . 1 Ballistic Gun 48 | 1 2 4 . 1 2 8 6 19 1 3 . 1 Ballistic Cannon 6 | . . . . . . . 3 . . . . 3 Launcher 19 | . . 3 . 1 2 . . 12 1 . . . Special Weapon 1 | . . . . . . . . . . . . 1 Impact Weapon . | . . . . . . . . . . . . . Slashing Weapon 5 | . . . . 2 1 1 . 1 . . . . Piercing Weapon . | . . . . . . . . . . . . . Special Melee Weapon . | . . . . . . . . . . . . . Unidentified Prototypes 15 | . . . 1 . 4 . 3 7 . . . . Parts Lost 80 | . . 2 . . 12 5 6 16 10 13 6 10 Power 16 | . . . . . 3 2 1 4 3 2 . 1 Propulsion 39 | . . 2 . . 8 2 4 9 4 4 3 3 Utility 13 | . . . . . 1 . 1 3 . 3 3 2 Weapon 12 | . . . . . . 1 . . 3 4 . 4 Highest Loss Streak 10 | . . 1 . . 5 2 3 8 5 8 4 10 To Critical Strikes . | . . . . . . . . . . . . . Average Slot Usage (%) 78 | . 87 84 85 79 97 95 89 95 28 42 20 17 Engine 2 | . 4 . . . 7 2 3 2 . 1 . . Core 6 | . . . . . 8 12 9 11 . 3 1 1 Hover 10 | . . . . . . . 25 36 . 1 2 . Flight 18 | . 17 27 28 28 44 44 15 . 1 8 2 2 Device 7 | . 9 14 14 . 4 8 8 12 1 4 1 2 Storage 7 | . 14 14 14 14 9 9 9 7 4 . . . Processor 1 | . 2 . . 8 2 . . . . . 6 6 Hackware 2 | . . . . . . . . 1 3 12 6 . Protection 1 | . . . . . . . . 6 1 . . . Energy Gun 3 | . 5 . . . 11 9 3 . . 1 . . Ballistic Gun 10 | . 22 27 28 14 5 4 10 12 . 3 . . Slashing Weapon 1 | . . . . 12 . 2 . . . . . . Naked Turns 20 | . . . . . . . . . . . 1 19 Heaviest Build 75 | 13 13 8 8 8 23 21 29 49 75 20 6 15 Greatest Support 61 | 26 26 8 8 8 25 21 40 40 61 16 15 28 Greatest Overweight (x) 3 | . 1 . . . 1 1 2 3 3 2 . 1 Average Overweight (x) . | . . . . . . . . . . . . . Largest Inventory Capacity 10 | 8 8 8 8 8 8 8 10 10 10 5 5 5 Average Capacity 8 | 7 8 8 8 8 8 8 9 10 8 5 5 5 Most Carried 10 | 2 8 8 8 8 8 8 10 10 10 5 5 5 Average Carried 7 | . 6 7 7 7 7 7 9 9 7 4 4 4 Final Capacity 10 | 8 8 8 8 8 8 8 10 10 5 5 5 5 Final Carried 10 | 2 8 8 8 8 8 8 10 10 4 5 5 1 Class Distribution -------------------- 50% | Mutant 19% | Scavenger-Sprinter 13% | Scavenger-Mutant 7% | Hacker-Mutant 5% | Sprinter Dominant Class ---------------- Scavenger-Mutant | -10/Materials Scavenger-Mutant | -10/Mines Scavenger-Mutant | -10/Exiles Mutant | -9/Mines Sprinter | -8/Materials Scavenger-Sprinter | -8/Garrison Mutant | -8/Materials Mutant | -7/Factory Mutant | -6/Factory Hacker-Mutant | -5/Factory Mutant | -4/Factory Mutant | -3/Research Resources | -11 -10 -10 -10 -9 -8 -8 -8 -7 -6 -5 -4 -3 ----------- Run | Yrd Mat Min Exi Min Mat Gar Mat Fac Fac Fac Fac Res Matter Collected 7578 | 273 404 434 20 111 869 600 805 3096 460 274 . 232 Remotely 317 | . . . . . . . . 143 . . . 174 Salvage Created 13339 | 229 895 252 . 1359 2432 1170 1334 4168 709 603 . 188 Parts 725 | 15 79 18 . 71 135 69 75 216 24 19 . 4 Haulers Intercepted 18 | . 2 . . . 5 . 3 7 . 1 . . Recyclers Shooed 16 | . 2 1 . 2 1 . . 6 2 2 . . Parts Field Recycled . | . . . . . . . . . . . . . Retrieved Matter . | . . . . . . . . . . . . . Parts Self-Destructed . | . . . . . . . . . . . . . Prevented . | . . . . . . . . . . . . . Kills | -11 -10 -10 -10 -9 -8 -8 -8 -7 -6 -5 -4 -3 ------- Run | Yrd Mat Min Exi Min Mat Gar Mat Fac Fac Fac Fac Res Combat Hostiles Destroyed 202 | . 13 12 . 6 24 29 21 75 15 6 . 1 Melee 5 | . . . . 2 . 3 . . . . . . Guns 84 | . 13 2 . 2 21 19 7 15 . 5 . . Cannons 26 | . . . . . . 2 9 5 9 . . 1 AOE 85 | . . 10 . 2 3 5 4 55 5 1 . . Classes Destroyed 20 | 3 6 1 . 1 2 1 1 5 . . . . Worker 55 | 2 6 3 . 10 16 . 3 12 1 2 . . Builder 26 | . 2 . . 5 6 . 1 9 3 . . . Tunneler 21 | 5 1 3 . 7 . . 3 2 . . . . Hauler 18 | . 2 . . . 5 . 3 7 . 1 . . Recycler 46 | 1 3 1 . 10 11 . 2 15 . 2 . 1 Carrier 1 | . . . . . . . . 1 . . . . Mechanic 8 | . . . . . 1 . 2 4 1 . . . Operator 7 | . 1 . . . 1 . . 3 1 . . 1 Watcher 11 | . 2 . . . 3 1 2 3 . . . . Swarmer 55 | . 9 6 . 2 9 9 . 13 2 4 . 1 Cutter 4 | . . . . . 3 1 . . . . . . Grunt 86 | . 4 . . 2 6 12 15 36 10 1 . . Brawler 2 | . . . . . . . . 2 . . . . Duelist 6 | . . . . . . 1 1 3 1 . . . Protector 5 | . . . . . . . 1 4 . . . . Sentry 26 | . . . . 2 6 6 4 5 2 1 . . Specialist 5 | . . . . . . . . 5 . . . . Hunter 3 | . . . . . . . . 3 . . . . Programmer 4 | . . . . . . . . 4 . . . . Assembled 6 | . . 6 . . . . . . . . . . Best Kill Streak 15 | 5 14 6 . 12 11 5 14 15 10 4 . 1 Combat Bots Only 10 | . 8 6 . 2 6 5 10 10 6 4 . 1 Max Kills in Single Turn 7 | 1 2 2 . 2 4 4 4 7 4 2 . 1 Gunslinging 1 | . 1 . . . . . . . . . . . Exploded 5 | . . 2 . 2 3 3 3 5 1 1 . . Melee 1 | . . . . 1 . 1 . . . . . . Uniques/NPCs Destroyed . | . . . . . . . . . . . . . Combat | -11 -10 -10 -10 -9 -8 -8 -8 -7 -6 -5 -4 -3 -------- Run | Yrd Mat Min Exi Min Mat Gar Mat Fac Fac Fac Fac Res Hostile Shots Fired 1417 | . 40 31 . 3 80 130 84 500 243 117 58 131 Missed 526 | . 10 14 . . 31 45 28 219 83 30 18 48 Damage Taken 13946 | . 260 220 . 27 917 1049 842 3170 2801 1588 1088 1984 Core 4471 | . 68 63 . . 150 160 171 546 773 556 677 1307 Absorbed by Shields 505 | . . . . . . 65 . 440 . . . . Ignored by Resistances 71 | . . . . . . . 14 57 . . . . Regen/Repaired (Parts) 73 | . 8 . . . . . 65 . . . . . Core Remaining (%) 39 | 100 . . . 47 . . 12 22 9 44 41 . Volleys Fired 772 | 21 80 58 . 8 138 77 83 203 34 59 . 11 Largest 3 | 2 2 2 . 2 2 2 2 2 2 3 . 2 Hottest 180 | 60 60 40 . 40 122 122 107 180 180 110 . 114 Shots Fired 1382 | 42 159 104 . 11 272 119 162 376 41 84 . 12 Gun 1218 | 42 159 95 . 10 267 112 119 322 8 84 . . Cannon 125 | . . . . . . 7 43 34 30 . . 11 Launcher 38 | . . 9 . 1 5 . . 20 3 . . . Special 1 | . . . . . . . . . . . . 1 Kinetic 936 | 21 132 95 . 10 110 33 140 322 8 55 . 10 Thermal 359 | . . . . . 157 86 22 34 30 29 . 1 Explosive 38 | . . 9 . 1 5 . . 20 3 . . . Electromagnetic 49 | 21 27 . . . . . . . . . . 1 Robot Hit Streak 25 | 9 8 6 . 4 25 19 10 13 8 14 . 5 Robot Miss Streak 12 | 2 4 4 . 2 6 2 10 12 8 6 . 4 Penetration Max 1 | . . . . . . . . . 1 1 . . Secondary Targets 9 | . 4 . . . 1 3 . 1 . . . . Max Gunslinging Chain 1 | . 1 . . . 1 1 . 1 . . . . Shots Hit Robots 942 | 28 87 55 . 53 194 92 106 232 29 60 . 6 Core Hits 710 | 9 44 30 . 21 100 41 60 338 40 22 . 5 Critical Kills 6 | . 1 . . . . . 1 2 1 1 . . Critical Parts Destroyed 5 | . . . . . . . . 3 . 2 . . Critical Strikes 38 | 1 2 . . 1 4 14 5 5 1 4 . 1 Burn 13 | . . . . . 4 8 1 . . . . . Meltdown 2 | . . . . . . . 1 . 1 . . . Destroy 10 | . 1 . . . . . . 5 . 4 . . Blast 4 | . . . . . . . 3 . . . . 1 Corrupt 2 | 1 1 . . . . . . . . . . . Sever 7 | . . . . 1 . 6 . . . . . . Melee Attacks 78 | . . . . 58 . 20 . . . . . . Impact . | . . . . . . . . . . . . . Slashing 78 | . . . . 58 . 20 . . . . . . Piercing . | . . . . . . . . . . . . . Sneak Attacks 31 | . . . . 31 . . . . . . . . Combat Hostiles 1 | . . . . 1 . . . . . . . . Follow-up Attacks . | . . . . . . . . . . . . . Damage Inflicted 34107 | 425 842 1024 . 3124 3727 2394 3147 14641 2956 1563 3 261 Guns 12271 | 386 842 430 . 59 3030 1317 1583 3345 169 1110 . . Cannons 3944 | . . . . . . 273 936 1412 1063 . . 260 Explosions 14590 | 39 . 594 . 125 697 496 628 9875 1699 437 . . Melee 3248 | . . . . 2940 . 308 . . . . . . Ramming 54 | . . . . . . . . 9 25 16 3 1 Kinetic 9388 | 166 661 430 . 59 1146 326 2006 3345 169 820 . 260 Thermal 10523 | 39 . . . . 2214 1760 1141 3206 1873 290 . . Explosive 10493 | . . 594 . 125 367 . . 8081 889 437 . . Electromagnetic 401 | 220 181 . . . . . . . . . . . Impact . | . . . . . . . . . . . . . Slashing 3248 | . . . . 2940 . 308 . . . . . . Piercing . | . . . . . . . . . . . . . Highest Corruption 2 | . . . . . . . 1 2 . . . . Average Corruption 1 | . . . . . . . 1 1 . . . . Corruption Purged 1 | . . . . . . . . 1 . . . . Corruption Blocked . | . . . . . . . . . . . . . Effects 6 | . . . . . . . 4 2 . . . . Matter Fused 2 | . . . . . . . 1 1 . . . . Energy Discharges 1 | . . . . . . . 1 . . . . . Data Loss (minor) 1 | . . . . . . . 1 . . . . . Misfires 1 | . . . . . . . . 1 . . . . Weapon Failures 1 | . . . . . . . 1 . . . . . Overload Shots . | . . . . . . . . . . . . . Overflow Damage 1956 | . . 48 . 880 132 164 43 581 108 . . . Projectiles 594 | . . . . . . 149 18 327 100 . . . Explosions 482 | . . 48 . . 132 15 25 254 8 . . . Melee 880 | . . . . 880 . . . . . . . . Knockbacks 13 | . . . . . . . 8 . 1 . . 4 Impact 1 | . . . . . . . . . 1 . . . Kinetic 11 | . . . . . . . 7 . . . . 4 Secondary 1 | . . . . . . . 1 . . . . . Self-Inflicted Damage 446 | . . 42 . . 105 49 . 183 59 7 1 . Shots 17 | . . 3 . . 2 1 . 8 3 . . . Rammed 6 | . . . . . . . . 1 . 2 2 1 Targets Rammed 10 | . . . . . . . . 1 4 2 2 1 Kicked 4 | . . . . . . . . . 4 . . . Crushed . | . . . . . . . . . . . . . Highest Temperature 345 | . 18 1 . . 345 239 54 333 162 78 . 23 Average Temperature 61 | . 11 1 . . 84 57 15 50 40 35 . 15 Received Heat Transfer 3418 | . 36 . . . 297 342 477 1057 843 306 51 9 Effects 5 | . . . . . 3 1 . 1 . . . . Shutdowns 1 | . . . . . 1 . . . . . . . Energy Bleed 3 | . . . . . 2 . . 1 . . . . Interference 1 | . . . . . . 1 . . . . . . Siege Activations . | . . . . . . . . . . . . . Robots Corrupted . | . . . . . . . . . . . . . Combat Hostiles . | . . . . . . . . . . . . . Parts Fried 2 | 2 . . . . . . . . . . . . Impact Corruptions . | . . . . . . . . . . . . . Robots Melted 2 | . . . . . . . 1 . 1 . . . Combat Hostiles 2 | . . . . . . . 1 . 1 . . . Parts Melted 19 | . . . . . 9 2 3 4 1 . . . Heat Transferred 14102 | . . . . . 4579 3187 1407 2249 1866 814 . . Parts Sabotaged . | . . . . . . . . . . . . . Parts Stolen . | . . . . . . . . . . . . . Parts Stripped . | . . . . . . . . . . . . . Power Chain Reactions 2 | 1 . . . . . . . . 1 . . . Alert | -11 -10 -10 -10 -9 -8 -8 -8 -7 -6 -5 -4 -3 ------- Run | Yrd Mat Min Exi Min Mat Gar Mat Fac Fac Fac Fac Res Peak Influence 3041 | 40 317 281 . 292 898 1979 1472 3041 2007 1027 414 470 Initial 1484 | . 26 77 . . 58 583 964 669 1484 973 347 219 Average 988 | 16 169 216 . 139 589 1369 1185 1514 1781 906 369 321 Maximum Alert Level 5 | . 1 1 . 1 3 5 4 5 5 3 2 2 Low Security (%) 12 | 100 61 24 . 75 4 . . . . . . . Level 1 14 | . 38 75 . 24 11 . . . . . 90 93 Level 2 8 | . . . . . 47 1 . 10 . . 9 6 Level 3 26 | . . . . . 36 28 46 19 . 100 . . Level 4 18 | . . . . . . 36 53 32 22 . . . Level 5 15 | . . . . . . 33 . 19 77 . . . High Security 4 | . . . . . . . . 18 . . . . Max Security . | . . . . . . . . . . . . . Squads Dispatched 57 | . 2 . . . 4 . 6 30 5 4 4 2 Investigation 8 | . . . . . 1 . . 3 2 1 1 . Extermination 2 | . . . . . . . . 2 . . . . Reinforcement 15 | . 2 . . . 3 . 1 4 1 . 3 1 Assault 23 | . . . . . . . 2 18 2 . . 1 Garrison 9 | . . . . . . . 3 3 . 3 . . Intercept . | . . . . . . . . . . . . . Searches Triggered . | . . . . . . . . . . . . . Construction Impeded 2 | . . . . . 1 . . . 1 . . . Haulers Reinforced 3 | . . . . . . . . 3 . . . . Active Scanning Responses . | . . . . . . . . . . . . . Cargo Convoy Interrupts 1 | . . . . . . . . 1 . . . . Stealth | -11 -10 -10 -10 -9 -8 -8 -8 -7 -6 -5 -4 -3 --------- Run | Yrd Mat Min Exi Min Mat Gar Mat Fac Fac Fac Fac Res Distress Signals 22 | . 3 . . . 4 1 5 8 . 1 . . Communications Jammed . | . . . . . . . . . . . . . Distress Signals . | . . . . . . . . . . . . . Times Spotted 393 | . 23 12 . 6 42 40 40 142 37 17 16 18 Peak Tracking Total 15 | . 6 5 . 3 7 9 10 15 11 10 13 10 Tactical Retreats 31 | . . . . . 3 1 1 13 7 1 3 2 Traps | -11 -10 -10 -10 -9 -8 -8 -8 -7 -6 -5 -4 -3 ------- Run | Yrd Mat Min Exi Min Mat Gar Mat Fac Fac Fac Fac Res Traps Triggered 18 | . . . . . 1 11 . 3 3 . . . Indirectly . | . . . . . . . . . . . . . Trap Hack Attempts . | . . . . . . . . . . . . . Triggered . | . . . . . . . . . . . . . Disarmed 6 | . . . . . . . 6 . . . . . Reprogrammed . | . . . . . . . . . . . . . Reused . | . . . . . . . . . . . . . Traps Extracted . | . . . . . . . . . . . . . Installed . | . . . . . . . . . . . . . Triggered . | . . . . . . . . . . . . . Machines | -11 -10 -10 -10 -9 -8 -8 -8 -7 -6 -5 -4 -3 ---------- Run | Yrd Mat Min Exi Min Mat Gar Mat Fac Fac Fac Fac Res Machines Disabled 43 | . 3 . . . 3 13 2 12 6 3 . 1 Max in Single Turn 6 | . 1 . . . 2 2 1 6 3 2 . 1 Garrison Access 1 | . . . . . . . . . . . . 1 Garrison Relay 9 | . . . . . . 9 . . . . . . Phase Generator 1 | . . . . . . 1 . . . . . . Machines Repaired . | . . . . . . . . . . . . . Machines Dismantled . | . . . . . . . . . . . . . Machines Sabotaged . | . . . . . . . . . . . . . Overloaded Fab Kills . | . . . . . . . . . . . . . Hacking | -11 -10 -10 -10 -9 -8 -8 -8 -7 -6 -5 -4 -3 --------- Run | Yrd Mat Min Exi Min Mat Gar Mat Fac Fac Fac Fac Res Machines Accessed 64 | . 6 . 5 . 12 4 6 19 6 2 1 3 Terminals 32 | . 5 . . . 9 4 3 8 2 . . 1 Fabricators 7 | . . . . . . . . 5 1 . . 1 Repair Stations 8 | . 1 . . . 1 . 2 2 1 1 . . Recycling Units 2 | . . . . . . . . . 1 . . 1 Scanalyzers 4 | . . . . . 1 . . 1 1 . 1 . Garrison Access 6 | . . . . . 1 . 1 3 . 1 . . Total Hacks 194 | . 15 . 50 . 32 7 13 51 12 5 3 6 Successful 106 | . 5 . 50 . 12 2 8 21 3 2 1 2 Failed 88 | . 10 . . . 20 5 5 30 9 3 2 4 Catastrophic 23 | . 2 . . . 5 2 1 9 3 1 . . Database Lockouts . | . . . . . . . . . . . . . Manual 34 | . 7 . 1 . 15 . 1 7 . 2 . 1 Terminals 84 | . 13 . . . 25 7 7 27 4 . . 1 Fabricators 15 | . . . . . . . . 10 3 . . 2 Repair Stations 21 | . 2 . . . 4 . 5 5 2 3 . . Recycling Units 4 | . . . . . . . . . 1 . . 3 Scanalyzers 11 | . . . . . 2 . . 4 2 . 3 . Garrison Access 9 | . . . . . 1 . 1 5 . 2 . . Terminal Hacks 74 | . 3 . 50 . 7 2 4 8 . . . . Record 49 | . . . 49 . . . . . . . . . Robot Schematic 1 | . . . . . . . . 1 . . . . Robot Analysis 5 | . 2 . . . 3 . . . . . . . Prototype ID Bank 5 | . . . . . 3 . 1 1 . . . . Terminal Index 1 | . . . . . 1 . . . . . . . Repair Station Index 1 | . . . . . . . 1 . . . . . Unreport Threat 3 | . 1 . . . . . . 2 . . . . Disarm Traps 1 | . . . . . . . 1 . . . . . Zone Layout 5 | . . . . . . . 1 4 . . . . Garrison Registry 1 | . . . . . . 1 . . . . . . Patrol Navigation 1 | . . . . . . 1 . . . . . . Derelict Proto ID Bank 1 | . . . 1 . . . . . . . . . Fabricator Hacks 9 | . . . . . . . . 8 . . . 1 Network Status 1 | . . . . . . . . 1 . . . . Load Schematic 4 | . . . . . . . . 3 . . . 1 Build 4 | . . . . . . . . 4 . . . . Repair Station Hacks 10 | . 2 . . . 2 . 3 1 1 1 . . Scan Component 7 | . 1 . . . 2 . 2 1 1 . . . Repair 2 | . 1 . . . . . 1 . . . . . Refit 1 | . . . . . . . . . . 1 . . Recycling Unit Hacks 1 | . . . . . . . . . . . . 1 Retrieve Components 1 | . . . . . . . . . . . . 1 Scanalyzer 8 | . . . . . 2 . . 3 2 . 1 . Insert Component 5 | . . . . . 1 . . 2 1 . 1 . Analyze 3 | . . . . . 1 . . 1 1 . . . Garrison Access Hacks 3 | . . . . . 1 . 1 1 . . . . Unlock Access 3 | . . . . . 1 . 1 1 . . . . Unauthorized Hacks 1 | . . . . . . . . . . 1 . . Terminals . | . . . . . . . . . . . . . Fabricators . | . . . . . . . . . . . . . Repair Stations . | . . . . . . . . . . . . . Recycling Units . | . . . . . . . . . . . . . Scanalyzers . | . . . . . . . . . . . . . Garrison Access 1 | . . . . . . . . . . 1 . . Reprogram 1 | . . . . . . . . . . 1 . . Data Cores Recovered 3 | . . . . . . . . 2 . . . 1 Used 1 | . . . . . . . . . . . . 1 Hacking Detections 53 | . 5 . . . 11 3 6 17 6 1 1 3 Full Trace Events 8 | . . . . . 2 1 1 3 . . 1 . Feedback Events 1 | . . . . . . . 1 . . . . . Corruption 1 | . . . . . . . 1 . . . . . Feedback Blocked . | . . . . . . . . . . . . . Robot Schematics Acquired 1 | . . . . . . . . 1 . . . . Robots Built 5 | . . . . . . . . 5 . . . . Authchips 1 | . . . . . . . . 1 . . . . Time 215 | . . . . . . . . 215 . . . . Total Robot Build Rating 17 | . . . . . . . . 17 . . . . Part Schematics Acquired 3 | . . . . . 1 . . 1 1 . . . Parts Built 1 | . . . . . . . . 1 . . . . Authchips . | . . . . . . . . . . . . . Time 152 | . . . . . . . . 152 . . . . Total Part Build Rating 5 | . . . . . . . . 5 . . . . Parts Repaired 2 | . 1 . . . . . 1 . . . . . Time 86 | . 26 . . . . . 60 . . . . . Parts Recycled . | . . . . . . . . . . . . . Recycled Matter . | . . . . . . . . . . . . . Retrieved Matter . | . . . . . . . . . . . . . Retrieved Components 3 | . . . . . . . . . . . . 3 Parts Scanalyzed 4 | . . . . . 1 . . 1 1 . 1 . Part Schematics Acquired 3 | . . . . . 1 . . 1 1 . . . Parts Damaged 1 | . . . . . 1 . . . . . . . Bothacking | -11 -10 -10 -10 -9 -8 -8 -8 -7 -6 -5 -4 -3 ------------ Run | Yrd Mat Min Exi Min Mat Gar Mat Fac Fac Fac Fac Res Used RIF Installer . | . . . . . . . . . . . . . Robots Hacked . | . . . . . . . . . . . . . Non-combat . | . . . . . . . . . . . . . Combat . | . . . . . . . . . . . . . Robot Hacks Applied . | . . . . . . . . . . . . . Relay Couplers Released 39 | . . . . . . 39 . . . . . . Machine Destruction 39 | . . . . . . 39 . . . . . . Fabnet Peak Effective % . | . . . . . . . . . . . . . Robots Rewired . | . . . . . . . . . . . . . Allies Hacked 1 | . . . . . . . . 1 . . . . Hacks Repelled . | . . . . . . . . . . . . . Allies | -11 -10 -10 -10 -9 -8 -8 -8 -7 -6 -5 -4 -3 -------- Run | Yrd Mat Min Exi Min Mat Gar Mat Fac Fac Fac Fac Res Total Allies 11 | . . 3 . 1 . . . 6 . 1 . . Largest Group 3 | . . 3 3 3 3 . . 3 . 1 . . Highest-Rated Group 87 | . . 40 40 63 63 . . 87 . 49 . . Highest-Rated Ally 49 | . . 16 16 31 31 . . 37 . 49 . . Total Orders 15 | . . . . . . . . . . 15 . . STAY 1 | . . . . . . . . . . 1 . . EXPLORE 13 | . . . . . . . . . . 13 . . RETURN 1 | . . . . . . . . . . 1 . . Ally Attacks 100 | . . . . 12 51 . . 33 . 4 . . Total Damage 1646 | . . . . 118 633 . . 734 . 161 . . Kills 17 | . . . . 1 10 . . 6 . . . . Allies Corrupted . | . . . . . . . . . . . . . Allies Melted . | . . . . . . . . . . . . . Intel | -11 -10 -10 -10 -9 -8 -8 -8 -7 -6 -5 -4 -3 ------- Run | Yrd Mat Min Exi Min Mat Gar Mat Fac Fac Fac Fac Res Robot Analysis Total 5 | . 2 . . . 3 . . . . . . . Derelict Logs Recovered 4 | . . 2 . 2 . . . . . . . . Drone Launches 23 | . . . . . . . . . . 23 . . Drone Recoveries 22 | . . . . . . . . . . 22 . . Exploration | -11 -10 -10 -10 -9 -8 -8 -8 -7 -6 -5 -4 -3 ------------- Run | Yrd Mat Min Exi Min Mat Gar Mat Fac Fac Fac Fac Res Turns Passed 8681 | 131 576 452 233 536 1040 1073 653 2044 691 826 146 280 Spaces Moved 11276 | 62 651 626 456 795 1624 1830 623 2889 563 396 292 469 Core 486 | 1 . . . . . . . 2 124 72 109 178 Treads . | . . . . . . . . . . . . . Legs 171 | . . . . . . . . . 171 . . . Wheels 191 | 61 130 . . . . . . . . . . . Hover 3374 | . . . . . . . 362 2887 . 122 3 . Flight 7054 | . 521 626 456 795 1624 1830 261 . 268 202 180 291 Fastest Speed 23 | 50 37 37 37 37 23 24 24 34 40 32 40 35 Average Speed 39 | 90 46 37 37 37 27 24 33 39 92 73 43 46 Slowest Speed 200 | 100 120 37 37 37 84 84 170 200 200 192 60 100 Overloaded Moves . | . . . . . . . . . . . . . Propulsion Burnouts . | . . . . . . . . . . . . . Robots Hopped 34 | . 3 . . . 12 4 4 . 7 . 1 3 Cave-ins Triggered . | . . . . . . . . . . . . . Exploration Rate (%) 54 | 4 92 98 92 95 76 91 35 61 17 18 13 14 Regions Visited 12 Branch Regions 3 Pre-discovered Areas 2 | . . . 1 1 . . . . . . . . Known Exits Taken 4 | . 1 . . 1 1 . 1 . . . . . Unknown Exits Taken 7 | 1 . 1 1 . . . . 1 1 1 1 . Scrap Searched 4 | . . 2 . 2 . . . . . . . . Spaces Dug 9 | . . . . . . . . 9 . . . . Terrain Destroyed 880 | 6 . 48 . 9 66 139 31 440 138 . . 3 Melee . | . . . . . . . . . . . . . Projectile 16 | . . . . . . 2 6 3 2 . . 3 AOE 864 | 6 . 48 . 9 66 137 25 437 136 . . . Terrain Rammed . | . . . . . . . . . . . . . Walls Destroyed . | . . . . . . . . . . . . . Machines Disabled . | . . . . . . . . . . . . . Actions | -11 -10 -10 -10 -9 -8 -8 -8 -7 -6 -5 -4 -3 --------- Run | Yrd Mat Min Exi Min Mat Gar Mat Fac Fac Fac Fac Res Total 14052 | 91 787 756 519 974 1950 2292 903 3437 666 856 308 513 Wait 1106 | . 11 56 59 90 77 90 149 155 31 382 2 4 Move 11199 | 61 644 625 455 794 1600 1822 614 2888 548 395 290 463 Hop 32 | . 3 . . . 11 3 4 . 7 . 1 3 Pick Up 94 | 1 10 3 1 4 23 16 8 14 5 2 2 5 Fast Attach 140 | 7 9 2 . 4 18 22 18 26 11 9 4 10 Attach 70 | . . 2 . . 12 7 3 18 14 2 5 7 Detach 61 | . 8 . . 2 7 8 4 18 7 2 3 2 Swap 133 | 1 6 8 2 5 31 27 2 51 . . . . Drop 194 | . 16 2 2 9 33 50 18 50 5 3 . 6 Fire 772 | 21 80 58 . 8 138 77 83 203 34 59 . 11 Melee 78 | . . . . 58 . 20 . . . . . . Ram 5 | . . . . . . . . 1 . 2 1 1 Kick 4 | . . . . . . . . . 4 . . . Crush . | . . . . . . . . . . . . . Escape Stasis 163 | . . . . . . 150 . 13 . . . . Rewire . | . . . . . . . . . . . . . Trap . | . . . . . . . . . . . . . Miscellaneous 1 | . . . . . . . . . . . . 1 Route ------- -11/Scrapyard -10/Materials (discovered 4 exits: *Mat x3 / *Min) -10/Mines (discovered 4 exits: *Mat x2 / *Exi / [*Sub]) -10/Exiles (discovered 2 exits: [*Min x2]) -9/Mines (discovered 2 exits: *Mat x2) -8/Materials (discovered 3 exits: *Fac x2 / Gar) -8/Garrison (discovered 3 exits: *Mat x3) -8/Materials (discovered 2 exits: *Fac / Gar) -7/Factory (discovered 4 exits: *Fac / [*Low x2] / Gar) -6/Factory (discovered 2 exits: *Fac x2) -5/Factory -4/Factory -3/Research (discovered 1 exit: [*Tes]) History --------- Turn | Location | Event 38 | -11/Scrapyard | Discovered new exit (range 16) 132 | -11/Scrapyard | Entered Materials 159 | -10/Materials | Discovered new exit (range 15) 257 | -10/Materials | Discovered new exit (range 7) 305 | -10/Materials | Build established: Mutant 338 | -10/Materials | Destroyed 8 combat bots 409 | -10/Materials | Discovered new exit (range 10) 451 | -10/Materials | Identified exit to Mines 483 | -10/Materials | Identified exit to Materials 588 | -10/Materials | Discovered exit to Materials (range 5) 622 | -10/Materials | Repaired Structural Scanner? 708 | -10/Materials | Entered Mines 709 | -10/Mines | Assembled infested the area 714 | -10/Mines | Assisted by a Guerilla fighting off Assembled 758 | -10/Mines | Learned Materials terminal intel 797 | -10/Mines | Learned 4 Materials zone layouts 896 | -10/Mines | Discovered exit to Materials (range 16) 904 | -10/Mines | Core integrity fell below 50% 919 | -10/Mines | Deemed a non-threat by the Exiles lab entrance 919 | -10/Mines | Discovered new exit (range 5) 941 | -10/Mines | Assisted by bots powering up and referring to "LRC-V3" 964 | -10/Mines | Found a damaged Exp. Sensor Array with a note attached 964 | -10/Mines | Found Prototype Device 989 | -10/Mines | Discovered exit to Materials (range 14) 1016 | -10/Mines | Discovered new exit (range 15) 1160 | -10/Mines | Entered Exiles 1160 | -10/Exiles | Accompanied by 3 allies 1166 | -10/Exiles | Discovered new exit (range 15) 1190 | -10/Exiles | Met 8R-AWN 1196 | -10/Exiles | Met EX-HEX 1206 | -10/Exiles | Met EX-BIN 1210 | -10/Exiles | Aligned with FarCom system 1211 | -10/Exiles | Given EX-Vault access code 1219 | -10/Exiles | Build established: Scavenger-Mutant 1225 | -10/Exiles | Opened EX-Vault 1229 | -10/Exiles | Found YOLO Cannon 1239 | -10/Exiles | Warned to stay clear of 0b10 Research branches 1248 | -10/Exiles | Met EX-DEC 1255 | -10/Exiles | Learned location of Zion (-7) 1271 | -10/Exiles | Visited The Gauntlet 1272 | -10/Exiles | Identified Exp. Sensor Array 1349 | -10/Exiles | Discovered new exit (range 14) 1393 | -10/Exiles | Left Exiles lab with YOLO Cannon 1393 | -10/Exiles | Entered Mines 1393 | -9/Mines | Accompanied by 3 allies 1414 | -9/Mines | A weapon hastily lodged in a ceiling crevice suddenly fell to the ground 1539 | -9/Mines | Identified exit to Materials 1575 | -9/Mines | Learned Materials machine intel 1608 | -9/Mines | Received a Rocket Launcher from a helpful Derelict 1643 | -9/Mines | Escorted by a lone wolf Derelict 1741 | -9/Mines | Learned location of Storage (-9) 1811 | -9/Mines | Discovered exit to Materials (range 15) 1929 | -9/Mines | Entered Materials 1929 | -8/Materials | Accompanied by 3 allies 1929 | -8/Materials | Evolved 4 slots: Power x1, Propulsion x3 1931 | -8/Materials | Loaded intel: 64 machine locations 1932 | -8/Materials | Loaded intel: 12 terminal locations 2090 | -8/Materials | Lost 5 parts (1p4n) 2273 | -8/Materials | Discovered new exit (range 15) 2284 | -8/Materials | Build established: Scavenger-Sprinter 2289 | -8/Materials | Lost 3 parts (2p1n) 2350 | -8/Materials | Discovered new exit (range 16) 2362 | -8/Materials | Identified exit to Factory 2602 | -8/Materials | Build established: Sprinter 2880 | -8/Materials | Identified exit to Garrison 2969 | -8/Materials | Entered Garrison 2977 | -8/Garrison | Garrison Relay disabled 2977 | -8/Garrison | Garrison Relay disabled 2980 | -8/Garrison | Garrison Relay disabled 2980 | -8/Garrison | Garrison Relay disabled 3220 | -8/Garrison | Triggered checkpoint 3249 | -8/Garrison | Build established: Scavenger-Sprinter 3280 | -8/Garrison | Discovered new exit (range 13) 3294 | -8/Garrison | Phase Generator disabled 3336 | -8/Garrison | Triggered checkpoint 3447 | -8/Garrison | Garrison Relay disabled 3464 | -8/Garrison | Triggered checkpoint 3560 | -8/Garrison | Triggered checkpoint 3651 | -8/Garrison | Garrison Relay disabled 3724 | -8/Garrison | Triggered checkpoint 3760 | -8/Garrison | Triggered checkpoint 3765 | -8/Garrison | Core integrity fell below 50% 3822 | -8/Garrison | Garrison Relay disabled 3921 | -8/Garrison | Discovered new exit (range 13) 3967 | -8/Garrison | Discovered new exit (range 24) 3967 | -8/Garrison | Discovered new exit (range 71) 3967 | -8/Garrison | Discovered new exit (range 36) 3986 | -8/Garrison | Triggered checkpoint 3989 | -8/Garrison | Garrison Relay disabled 4018 | -8/Garrison | Triggered checkpoint 4042 | -8/Garrison | Entered Materials 4195 | -8/Materials | Identified exit to Garrison 4227 | -8/Materials | Garrison activated, responded to threat 4442 | -8/Materials | First assault squad dispatched 4485 | -8/Materials | Repaired Aerolev Unit 4535 | -8/Materials | Destroyed 10 combat bots 4539 | -8/Materials | Lost 3 parts (1p1n1u) 4580 | -8/Materials | Discovered exit to Factory (range 16) 4591 | -8/Materials | Core integrity fell below 20% 4695 | -8/Materials | Entered Factory 4695 | -7/Factory | Evolved 2 slots: Utility x2 4761 | -7/Factory | Discovered new exit (range 15) 4778 | -7/Factory | Build established: Mutant 5095 | -7/Factory | First assault squad dispatched 5213 | -7/Factory | Fabricated K-01 Serf? 5325 | -7/Factory | Destroyed 7 combat bots 5412 | -7/Factory | Fabricated Scatter Rocket Array (x1) 5852 | -7/Factory | Discovered new exit (range 16) 5906 | -7/Factory | Identified exit to Garrison 6146 | -7/Factory | Destroyed 9 combat bots 6300 | -7/Factory | Discovered new exit (range 12) 6364 | -7/Factory | High security lockdown imminent 6382 | -7/Factory | Garrison activated, responded to threat 6388 | -7/Factory | Fabricated P-60 Hacker? 6390 | -7/Factory | Cargo convoy interrupted 6397 | -7/Factory | Fabricated P-60 Hacker? 6440 | -7/Factory | Destroyed 7 combat bots 6444 | -7/Factory | High security lockdown engaged 6487 | -7/Factory | Lost 3 allies 6554 | -7/Factory | Found Prototype Slashing Weapon 6554 | -7/Factory | Identified Vibroblade 6558 | -7/Factory | Found Prototype Protection 6558 | -7/Factory | Identified Active Cooling Armor 6655 | -7/Factory | Destroyed 10 combat bots 6705 | -7/Factory | Lost 8 parts (1p5n2u) 6735 | -7/Factory | Core integrity fell below 50% 6739 | -7/Factory | Entered another Factory area 6739 | -6/Factory | Evolved 2 slots: Propulsion x1, Weapon x1 6768 | -6/Factory | Lost 3 parts (1p2n) 6964 | -6/Factory | Discovered new exit (range 13) 7089 | -6/Factory | First assault squad dispatched 7239 | -6/Factory | Lost 5 parts (2p1n2w) 7254 | -6/Factory | Core integrity fell below 50% 7362 | -6/Factory | Core integrity fell below 20% 7423 | -6/Factory | Discovered new exit (range 15) 7430 | -6/Factory | Entered another Factory area 7430 | -5/Factory | Evolved 2 slots: Propulsion x2 7616 | -5/Factory | Lost 8 parts (2p2n1u3w) 7967 | -5/Factory | Build established: Hacker-Mutant 8229 | -5/Factory | Core integrity fell below 50% 8251 | -5/Factory | Discovered new exit (range 10) 8254 | -5/Factory | Lost 4 parts (2n1u1w) 8256 | -5/Factory | Entered another Factory area 8256 | -4/Factory | Evolved 2 slots: Utility x2 8398 | -4/Factory | Discovered new exit (range 6) 8402 | -4/Factory | Core integrity fell below 50% 8402 | -4/Factory | Entered Research 8402 | -3/Research | Evolved 2 slots: Utility x2 8429 | -3/Research | Lost 4 parts (3n1u) 8635 | -3/Research | Core integrity fell below 50% 8669 | -3/Research | Core integrity fell below 20% 8677 | -3/Research | Discovered new exit (range 15) 8682 | -3/Research | Destroyed by C-35 Carver with Carbide Saw Last Messages --------------- 08633_ Dropped Active Cooling Armor. 08633_ Acquired Xenon Bombardment Thruster. 08635_ R-10 Processor collects Active Cooling Armor. 08635_ Acquired Impulse Thruster Array. 08635_ U-05 Engineer builds a Wall. 08637_ Acquired Xenon Bombardment Thruster. 08638_ Acquired 6 matter. 08643_ R-10 Processor collects Xenon Bombardment Thruster. 08652_ Xenon Bombardment Thruster destroyed. 08656_ ALERT: Suspicious intruders detected, dispatching Cutter reinforcements to area. 08661_ C-35 Carver knocked back. 08661_ Knocked back. 08662_ Xenon Bombardment Thruster destroyed. 08662_ Impulse Thruster Array destroyed. 08668_ Core Analyzer severed. 08673_ U-05 Engineer lays Concrete. 08677_ EXIT=FOUND 08677_ Acquired 3 matter. 08678_ Penetrated by Slug. Map ----- +----------------------------------------------------+ | ?????????????????????????????????????????????????? | | ?????????????????????????????????????????????????? | | ?????????????????????????????????????????????????? | | ?????????????????????????????????????????????????? | | ?????????????????????????????????????????????????? | | ?????????????????????????????????????????????????? | | ?????????????????????????????????????????????????? | | ?????????????????????????????????????????????????? | | ?????????????????????????????????????????????????? | | ????????????????????????+????????????????????????? | | ???????????????????????? ????????????????????????? | | ???????????????????????? #???????????????????????? | | ???????????????????????? #???????????????????????? | | ???????????????????????# #???????????????????????? | | ???????????????????????# #???????????????????????? | | ???????????????????????# #???????????????????????? | | ???????????????????????# #???????????????????????? | | ???????????????????????# #???????????????????????? | | ???????????????????????# #???????????????????????? | | ????????????????######## ##??????????????????????? | | ????????????????# !!! #??????????????????????? | | ????????????????# !!! +??????????????????????? | | ????????????????# !!! #??????????????????????? | | ????????????????# c #??????????????????????? | | ????????????????# c c #??????????????????????? | | ? #######+####### @# ?????????????????? | | t k = #????????????????? | | sc Y< ???????????????? | | s !k ! ##???????????????? | | ???########### ############ #????????????????? | | ???# ! # ###?????????######????????????????? | | ???# # # ##??????????????????????????????? | | ???+ # #??????????????????????????????? | | ???# # #??????????????????????????????? | | ???# w#??????????????????????????????? | | ???# #??????????????????????????????? | | #### #??????????????????????????????? | | + # #??????????????????????????????? | | ####### ## #??????????????????????????????? | | ??????# * # #??????????????????????????????? | | ??????# # ##?????????????????????????????? | | ??????#[= # T#?????????????????????????????? | | ??????#! # #?????????????????????????????? | | ??????# # ##?????????????????????????????? | | ??????# # #??????????????????????????????? | | ??????# # ###### ????????????????????? | | ??????# # ??????????????????? | | ??????# + ??????????????????? | | ??????# # ??????????????????? | | ??????# # ######??????????????????? | +----------------------------------------------------+ Best States ------------- Heat Dissipation 97 Energy Generation 28 Energy Capacity 360 Matter Stores 300 Matter Capacity 300 Sight Range 18 Robot Scan Range 20 Terrain Scan Range 16 Terrain Scan Density 85 Jamming Range 14 Armor Coverage 900 Resistance: KI 25 Resistance: EM 15 Evasion (%) 65 Targeting Accuracy 16 Melee Accuracy 6 Core Analysis 6 Energy Filtering 30 Offensive Hacking 10 Defensive Hacking 20 Authchip Count 2 Item Schematics ----------------- Imp. VTOL Module | -8/Materials | Scanalyzed Aerolev Unit | -7/Factory | Scanalyzed Nuclear Pulse Thruster | -6/Factory | Scanalyzed Robot Schematics ------------------ P-60 Hacker | -7/Factory | Hacked Fabricated ------------ K-01 Serf | x1 | -7/Factory | Preloaded Scatter Rocket Array | x1 | -7/Factory | Preloaded P-60 Hacker | x2 | -7/Factory | Authchip P-60 Hacker | x2 | -7/Factory Alien Tech Used ----------------- None Achievements -------------- None Challenges ------------ None Game ------ Seed SpikedGaussSystem Manual? 0 Play Time 02:33:57 Cumulative 288.2 hours Start 2024.04.30 @ 23:52:31 End 2024.05.01 @ 02:25:46 Sessions 1 Manual Loads 0 Difficulty Rogue Special Mode None Game No. 115 Rogue 115 Adventurer 0 Explorer 0 Win Type - Total 1 Types 0/0/1/0/0/0/0/0/0 Lore% 65 Gallery% 73 Achievement% 59 Wizard Run 0 Options --------- Layout 0 ASCII 0 Keyboard 1 Movement Arrows Keybinds 0 Fullscreen 1 Font 12/Proggy Map View 83x54 Zoom Use 0% Tactical HUD 1 Map Filters NONE Filters NONE Steam 0 RUN: c84044a7-bf40-4908-97a6-7c50224e9899